fUSD/lending_fUSD_20260227
["ID","MTS","AMOUNT","RATE_DAILY","PERIOD"]
[406795099,1772197841916,-10732.46453612,0.000365,120]
[406795101,1772197841926,-5000.0,0.00036528,10]
[406795103,1772197841935,-5000.0,0.0003653,10]
[406795105,1772197841944,-150.0,0.00036531,30]
[406795107,1772197841954,-150.0,0.00036531,2]
[406795109,1772197841964,-1883.45,0.00036543,10]
[406795111,1772197841973,-4724.97,0.0003655,10]
[406795113,1772197841983,-5000.0,0.00036558,10]
[406795115,1772197841992,-283.90698305,0.00036586,30]
[406795117,1772197842001,-509.0,0.00036593,21]
[406795119,1772197842010,-3577.25,0.00036604,10]
[406795121,1772197842020,-191.03,0.00036614,10]
[406795123,1772197842028,-160.67,0.00036663,10]
[406795125,1772197842038,-632.113379,0.0003667,2]
[406795127,1772197842047,-1000.0,0.0003667,2]
[406795129,1772197842056,-1250.51,0.00036678,10]
[406795131,1772197842066,-455.69291,0.00036688,30]
[406795133,1772197842075,-1698.94,0.0003669,10]
[406795135,1772197842084,-5000.0,0.00036697,10]
[406795137,1772197842093,-10574.96,0.000367,2]
[406795139,1772197842103,-1040.2,0.00036711,5]
[406795142,1772197842113,-151.0,0.00036721,14]
[406795144,1772197842122,-25000.0,0.00036724,10]
[406795146,1772197842131,-5000.0,0.00036748,10]
[406795148,1772197842141,-5000.0,0.00036748,10]
[406795150,1772197842151,-25000.0,0.00036779,10]
[406795152,1772197842160,-5000.0,0.00036796,10]
[406795154,1772197842169,-1250.5,0.00036798,10]
[406795156,1772197842178,-1178.19,0.000368,14]
[406795158,1772197842187,-1618.53197853,0.000368,2]
[406795160,1772197842196,-515.46401169,0.00036809,2]
[406795162,1772197842205,-5000.0,0.00036825,10]
[406795164,1772197842214,-2517.99,0.00036834,10]
[406795166,1772197842223,-5000.0,0.00036866,10]
[406795168,1772197842232,-5000.0,0.00036867,10]
[406795170,1772197842242,-1518.9763,0.00036888,7]
[406795172,1772197842251,-455.69291,0.00036888,30]
[406795174,1772197842260,-5000.0,0.00036894,10]
[406795176,1772197842268,-14198.17502926,0.0003691,2]
[406795178,1772197842278,-18967.79323056,0.00036936,2]
[406795180,1772197842286,-365.0,0.00037,2]
[406795182,1772197842295,-363.94734729,0.00037,3]
[406795184,1772197842304,-166.50652523,0.00037,2]
[406795186,1772197842313,-160.0,0.00037,120]
[406795188,1772197842322,-160.0,0.00037,10]
[406795190,1772197842331,-455.69291,0.00037088,30]
[406795192,1772197842340,-2567.89189091,0.00037186,2]
[406795194,1772197842349,-6907.92,0.000372,14]
[406795196,1772197842357,-253.33,0.0003726,120]
[406795198,1772197842367,-455.69291,0.00037288,30]
[406795200,1772197842377,-4963.8,0.000373,14]
[406795202,1772197842387,-1040.2,0.00037388,7]
[406795204,1772197842396,-2000.0,0.000374,2]
[406795206,1772197842405,-156.95,0.0003744,14]
[406795208,1772197842414,-156.95,0.0003744,14]
[406795210,1772197842423,-156.96,0.0003744,14]
[406795212,1772197842432,-455.69291,0.00037488,30]
[406795214,1772197842441,-500.0,0.00037507,2]
[406795216,1772197842450,-4354.65613182,0.0003759,2]
[406795218,1772197842459,-365.61086307,0.0003765,30]
[406795220,1772197842468,-455.69291,0.00037688,30]
[406795222,1772197842478,-169.14,0.00037705,2]
[406795224,1772197842489,-2293.699,0.00037783,49]
[406795226,1772197842498,-277.956,0.00037783,49]
[406795228,1772197842508,-500.0,0.00037836,5]
[406795230,1772197842517,-203.16523887,0.0003788,2]
[406795232,1772197842526,-500.0,0.00037886,120]
[406795234,1772197842536,-101666.21645944,0.00037887,7]
[406795236,1772197842545,-541.50894,0.00037887,7]
[406795238,1772197842554,-78648.78283891,0.00037887,7]
[406795240,1772197842564,-455.69291,0.00037888,30]
[406795242,1772197842573,-526.0,0.00038,5]
[406795244,1772197842584,-160.0,0.00038,30]
[406795246,1772197842593,-160.0,0.00038,7]
[406795249,1772197842603,-462.24,0.00038034,30]
[406795251,1772197842612,-1040.2,0.00038066,7]
[406795253,1772197842621,-455.69291,0.00038088,30]
[406795255,1772197842631,-882.46526268,0.000381,33]
[406795256,1772197842641,-150.0,0.00038252,2]
[406795258,1772197842650,-455.69291,0.00038288,30]
[406795260,1772197842659,-185.86919859,0.000383,30]
[406795263,1772197842669,-18058.92770432,0.00038356,120]
[406795264,1772197842680,-237.37622037,0.0003838,5]
[406795266,1772197842689,-10705.06920545,0.0003842,2]
[406795268,1772197842699,-455.69291,0.00038488,30]
[406795270,1772197842708,-193.19968711,0.000385,2]
[406795273,1772197842718,-1178.19,0.000385,14]
[406795275,1772197842729,-455.69291,0.00038688,30]
[406795277,1772197842738,-1040.2,0.00038743,7]
[406795279,1772197842747,-205.05011285,0.000388,2]
[406795281,1772197842760,-385.96002226,0.00038904,5]
[406795283,1772197842769,-500.0,0.0003897,2]
[406795285,1772197842779,-1000.0,0.0003897,2]
[406795287,1772197842787,-151.0,0.00038997,14]
[406795289,1772197842796,-26657.57892796,0.00039,2]
[406795291,1772197842806,-396.00419288,0.00039,14]
[406795293,1772197842815,-36555.46185015,0.00039,10]
[406795295,1772197842824,-3856.59986192,0.00039046,5]
[406795297,1772197842835,-455.69291,0.00039088,30]
[406795299,1772197842844,-500.0,0.00039136,120]
[406795301,1772197842853,-455.69291,0.00039288,30]
[406795303,1772197842863,-221.0,0.00039362,7]
[406795305,1772197842872,-500.0,0.0003937,2]
[406795307,1772197842882,-1040.2,0.00039421,30]
[406795309,1772197842891,-455.69291,0.00039488,30]
[406795311,1772197842900,-515.46401169,0.0003951,2]
[406795313,1772197842909,-18967.79323056,0.00039668,2]
[406795315,1772197842919,-455.69291,0.00039688,30]
[406795317,1772197842928,-2000.0,0.000397,2]
[406795319,1772197842937,-891.4422639,0.00039774,2]
[406795321,1772197842947,-10574.96,0.000398,30]
[406795323,1772197842956,-455.69291,0.00039888,30]
[406795325,1772197842965,-11017.41673614,0.000399,2]
[406795327,1772197842974,-311.29306415,0.0003999,7]
[406795329,1772197842983,-57702.30900296,0.00039999,2]
[406795331,1772197842992,-500.0,0.00039999,31]
[406795333,1772197843001,-500.0,0.00039999,31]
[406795335,1772197843010,-500.0,0.00039999,31]
[406795337,1772197843020,-450.93959115,0.00039999,31]
[406795339,1772197843029,-500.0,0.00039999,31]
[406795341,1772197843038,-460.74468726,0.00039999,31]
[406795342,1772197843048,-503.44757665,0.0004,12]
[406795345,1772197843058,-4038.46,0.0004,120]
[406795347,1772197843067,-956.69,0.0004,120]
[406795349,1772197843076,-642.26,0.0004,120]
[406795351,1772197843085,-417.11,0.0004,120]
[406795353,1772197843095,-156.0,0.0004,120]
[406795355,1772197843104,-6907.92,0.0004,14]
[406795357,1772197843113,-461.3934191,0.0004,7]
[406795359,1772197843122,-152.0,0.0004,120]
[406795362,1772197843131,-232.43799838,0.0004,120]
[406795365,1772197843140,-428.68305344,0.0004,7]
[406795367,1772197843149,-2228.17767087,0.0004,120]
[406795369,1772197843157,-2225.72192341,0.0004,7]
[406795371,1772197843167,-170.64899109,0.0004,120]
[406795373,1772197843175,-6000.0,0.0004,3]
[406795375,1772197843184,-496.53196946,0.0004,120]
[406795377,1772197843192,-995.20287872,0.0004,7]
[406795379,1772197843201,-150.0,0.0004,120]
[406795381,1772197843210,-1276.14794687,0.0004,14]
[406795383,1772197843219,-392.02779585,0.0004,2]
[406795385,1772197843228,-1566.50481207,0.0004,2]
[406795387,1772197843238,-4123.94271328,0.0004,2]
[406795390,1772197843247,-8036.726468,0.0004,120]
[406795392,1772197843256,-234.10711812,0.0004,120]
[406795394,1772197843266,-219.60375487,0.0004,2]
[406795396,1772197843275,-760.22722994,0.0004,2]
[406795398,1772197843284,-164.86976679,0.0004,120]
[406795400,1772197843293,-12900.02287852,0.0004,120]
[406795402,1772197843302,-530.07132271,0.0004,120]
[406795404,1772197843312,-277.79461607,0.0004,30]
[406795406,1772197843322,-355.70752278,0.0004,30]
[406795408,1772197843331,-1829.0,0.0004,120]
[406795423,1772197843467,-601.81452321,0.0004,2]
[406795425,1772197843478,-34226.5757402,0.0004,10]
[406795427,1772197843487,-10038.23633371,0.0004,120]
[406795429,1772197843496,-315.90831792,0.0004,2]
[406795431,1772197843506,-3000.0,0.0004,7]
[406795433,1772197843516,-162.21478329,0.0004,2]
[406795435,1772197843525,-10726.43449571,0.0004,2]
[406795437,1772197843535,-25705.87990451,0.0004,120]
[406795439,1772197843544,-518.17640426,0.0004,120]
[406795441,1772197843553,-1426.51,0.0004,120]
[406795443,1772197843563,-250.0,0.0004,10]
[406795445,1772197843572,-150.69,0.0004,2]
[406795447,1772197843582,-150.69,0.0004,2]
[406795449,1772197843591,-150.69,0.0004,2]
[406795451,1772197843600,-150.69,0.0004,2]
[406795453,1772197843609,-150.69,0.0004,2]
[406795455,1772197843618,-150.69,0.0004,2]
[406795457,1772197843627,-150.69,0.0004,2]
[406795459,1772197843636,-150.69,0.0004,2]
[406795461,1772197843646,-150.69,0.0004,2]
[406795463,1772197843655,-150.69,0.0004,2]
[406795465,1772197843664,-150.69,0.0004,2]
[406795467,1772197843673,-150.69,0.0004,2]
[406795469,1772197843682,-150.69,0.0004,2]
[406795471,1772197843691,-150.69,0.0004,2]
[406795473,1772197843700,-150.69,0.0004,2]
[406795475,1772197843710,-150.69,0.0004,2]
[406795477,1772197843719,-150.69,0.0004,2]
[406795479,1772197843728,-150.69,0.0004,2]
[406795481,1772197843737,-150.69,0.0004,2]
[406795483,1772197843747,-150.69,0.0004,2]
[406795486,1772197843761,-150.69,0.0004,2]
[406795487,1772197843771,-150.69,0.0004,2]
[406795490,1772197843780,-150.69,0.0004,2]
[406795491,1772197843791,-150.69,0.0004,2]
[406795493,1772197843801,-150.69,0.0004,2]
[406795496,1772197843810,-150.69,0.0004,2]
[406795497,1772197843820,-150.69,0.0004,2]
[406795499,1772197843832,-150.69,0.0004,2]
[406795502,1772197843841,-150.69,0.0004,2]
[406795504,1772197843850,-150.69,0.0004,2]
[406795507,1772197843859,-150.69,0.0004,2]
[406795510,1772197843868,-150.69,0.0004,2]
[406795511,1772197843877,-150.69,0.0004,2]
[406795514,1772197843887,-150.69,0.0004,2]
[406795515,1772197843896,-150.69,0.0004,2]
[406795518,1772197843906,-150.69,0.0004,2]
[406795520,1772197843915,-150.69,0.0004,2]
[406795522,1772197843924,-150.69,0.0004,2]
[406795524,1772197843934,-150.69,0.0004,2]
[406795526,1772197843943,-150.69,0.0004,2]
[406795528,1772197843952,-150.69,0.0004,2]
[406795530,1772197843961,-150.69,0.0004,2]
[406795532,1772197843970,-150.69,0.0004,2]
[406795534,1772197843979,-150.69,0.0004,2]
[406795536,1772197843988,-150.69,0.0004,2]
[406795538,1772197843996,-150.69,0.0004,2]
[406795539,1772197844006,-150.69,0.0004,2]
[406795540,1772197844015,-455.69291,0.00040088,30]
[406795541,1772197844024,-1040.2,0.00040098,30]
[406795542,1772197844032,-150.0,0.00040165,2]
[406795543,1772197844041,-12150.0,0.00040185,5]
[406795544,1772197844050,-4963.8,0.000402,14]
[406795545,1772197844059,-509.0,0.00040211,24]
[406795546,1772197844068,-455.69291,0.00040288,30]
[406795547,1772197844077,-2000.0,0.000403,7]
[406795548,1772197844085,-161.0,0.00040412,7]
[406795549,1772197844095,-500.0,0.00040425,120]
[406795550,1772197844103,-500.0,0.00040426,2]
[406795551,1772197844112,-500.0,0.00040426,2]
[406795552,1772197844121,-500.0,0.00040426,2]
[406795553,1772197844129,-500.0,0.00040426,2]
[406795554,1772197844138,-500.0,0.00040426,2]
[406795555,1772197844147,-500.0,0.00040426,2]
[406795557,1772197844156,-500.0,0.00040426,2]
[406795558,1772197844165,-500.0,0.00040426,2]
[406795560,1772197844174,-500.0,0.00040426,2]
[406795562,1772197844183,-500.0,0.00040426,2]
[406795564,1772197844192,-500.0,0.00040426,2]
[406795566,1772197844201,-500.0,0.00040426,2]
[406795567,1772197844210,-500.0,0.00040426,2]
[406795568,1772197844219,-500.0,0.00040426,2]
[406795569,1772197844228,-500.0,0.00040426,2]
[406795570,1772197844237,-500.0,0.00040426,2]
[406795571,1772197844247,-500.0,0.00040426,2]
[406795572,1772197844256,-500.0,0.00040426,2]
[406795573,1772197844265,-500.0,0.00040426,2]
[406795574,1772197844275,-500.0,0.00040426,2]
[406795575,1772197844284,-500.0,0.00040426,2]
[406795576,1772197844294,-500.0,0.00040426,2]
[406795577,1772197844303,-500.0,0.00040426,2]
[406795578,1772197844312,-500.0,0.00040426,2]
[406795579,1772197844321,-500.0,0.00040426,2]
[406795580,1772197844330,-500.0,0.00040426,2]
[406795581,1772197844339,-500.0,0.00040426,2]
[406795582,1772197844349,-500.0,0.00040426,2]
[406795583,1772197844358,-500.0,0.00040426,2]
[406795584,1772197844367,-500.0,0.00040426,2]
[406795585,1772197844376,-500.0,0.00040426,2]
[406795586,1772197844385,-500.0,0.00040426,2]
[406795587,1772197844393,-500.0,0.00040426,2]
[406795588,1772197844402,-500.0,0.00040426,2]
[406795589,1772197844412,-500.0,0.00040426,2]
[406795590,1772197844421,-500.0,0.00040426,2]
[406795591,1772197844430,-500.0,0.00040426,2]
[406795592,1772197844440,-500.0,0.00040426,2]
[406795593,1772197844450,-500.0,0.00040426,2]
[406795594,1772197844460,-500.0,0.00040426,2]
[406795595,1772197844469,-500.0,0.00040426,2]
[406795596,1772197844478,-500.0,0.00040426,2]
[406795597,1772197844487,-500.0,0.00040426,2]
[406795598,1772197844497,-500.0,0.00040426,2]
[406795599,1772197844506,-500.0,0.00040426,2]
[406795600,1772197844516,-500.0,0.00040426,2]
[406795601,1772197844525,-500.0,0.00040426,2]
[406795602,1772197844534,-427.0,0.00040426,2]
[406795603,1772197844544,-800.0,0.00040426,13]
[406795604,1772197844553,-800.0,0.00040426,13]
[406795605,1772197844562,-800.0,0.00040426,13]
[406795606,1772197844571,-800.0,0.00040426,13]
[406795607,1772197844581,-800.0,0.00040426,13]
[406795608,1772197844590,-800.0,0.00040426,13]
[406795609,1772197844599,-800.0,0.00040426,13]
[406795610,1772197844608,-800.0,0.00040426,13]
[406795611,1772197844618,-800.0,0.00040426,13]
[406795612,1772197844627,-800.0,0.00040426,13]
[406795613,1772197844636,-800.0,0.00040426,13]
[406795614,1772197844645,-800.0,0.00040426,13]
[406795616,1772197844654,-800.0,0.00040426,13]
[406795618,1772197844664,-800.0,0.00040426,13]
[406795619,1772197844673,-800.0,0.00040426,13]
[406795620,1772197844682,-800.0,0.00040426,13]
[406795621,1772197844691,-800.0,0.00040426,13]
[406795622,1772197844700,-800.0,0.00040426,13]
[406795623,1772197844709,-800.0,0.00040426,13]
[406795624,1772197844718,-800.0,0.00040426,13]
[406795625,1772197844728,-800.0,0.00040426,13]
[406795626,1772197844737,-800.0,0.00040426,13]
[406795627,1772197844746,-800.0,0.00040426,13]
[406795628,1772197844757,-800.0,0.00040426,13]
[406795629,1772197844768,-800.0,0.00040426,13]
[406795630,1772197844777,-800.0,0.00040426,13]
[406795631,1772197844786,-800.0,0.00040426,13]
[406795632,1772197844795,-800.0,0.00040426,13]
[406795633,1772197844806,-800.0,0.00040426,13]
[406795634,1772197844815,-800.0,0.00040426,13]
[406795635,1772197844824,-800.0,0.00040426,13]
[406795636,1772197844836,-800.0,0.00040426,13]
[406795637,1772197844845,-800.0,0.00040426,13]
[406795638,1772197844854,-800.0,0.00040426,13]
[406795639,1772197844863,-800.0,0.00040426,13]
[406795640,1772197844873,-800.0,0.00040426,13]
[406795641,1772197844883,-800.0,0.00040426,13]
[406795642,1772197844892,-800.0,0.00040426,13]
[406795643,1772197844902,-800.0,0.00040426,13]
[406795644,1772197844911,-800.0,0.00040426,13]
[406795645,1772197844921,-800.0,0.00040426,13]
[406795646,1772197844930,-800.0,0.00040426,13]
[406795647,1772197844940,-800.0,0.00040426,13]
[406795648,1772197844950,-800.0,0.00040426,13]
[406795649,1772197844959,-800.0,0.00040426,13]
[406795650,1772197844968,-800.0,0.00040426,13]
[406795651,1772197844978,-800.0,0.00040426,13]
[406795652,1772197844987,-800.0,0.00040426,13]
[406795653,1772197844996,-800.0,0.00040426,13]
[406795654,1772197845006,-800.0,0.00040426,13]
[406795655,1772197845016,-800.0,0.00040426,13]
[406795656,1772197845025,-800.0,0.00040426,13]
[406795657,1772197845035,-800.0,0.00040426,13]
[406795658,1772197845044,-800.0,0.00040426,13]
[406795659,1772197845053,-800.0,0.00040426,13]
[406795660,1772197845064,-800.0,0.00040426,13]
[406795661,1772197845073,-800.0,0.00040426,13]
[406795662,1772197845082,-800.0,0.00040426,13]
[406795663,1772197845091,-800.0,0.00040426,13]
[406795664,1772197845101,-433.0,0.00040426,13]
[406795665,1772197845110,-152.0,0.00040461,4]
[406795666,1772197845120,-455.69291,0.00040488,30]
[406795667,1772197845129,-500.0,0.00040581,2]
[406795668,1772197845138,-10198.44145621,0.0004059,2]
[406795669,1772197845147,-500.0,0.00040644,30]
[406795670,1772197845156,-455.69291,0.00040688,30]
[406795671,1772197845165,-82095.61801107,0.000407,6]
[406795672,1772197845175,-500.0,0.0004077,3]
[406795673,1772197845184,-1000.0,0.0004077,3]
[406795674,1772197845194,-1040.2,0.00040776,30]
[406795675,1772197845203,-1178.19,0.000408,14]
[406795676,1772197845212,-10574.96,0.000408,30]
[406795677,1772197845221,-455.69291,0.00040888,30]
[406795678,1772197845230,-1964.8222745,0.000409,2]
[406795679,1772197845240,-2845.0,0.00040907,11]
[406795680,1772197845250,-231403.0,0.0004095,60]
[406795681,1772197845259,-2473.82123685,0.00041,30]
[406795682,1772197845269,-11739.50497813,0.00041,120]
[406795683,1772197845279,-56754.97063848,0.00041,5]
[406795684,1772197845289,-404.26292176,0.00041,7]
[406795685,1772197845298,-2318.152568,0.00041,120]
[406795686,1772197845422,-1563.62426102,0.00041,120]
[406795687,1772197845432,-18702.22951503,0.00041,120]
[406795688,1772197845442,-2567.89189091,0.00041043,28]
[406795689,1772197845451,-455.69291,0.00041088,30]
[406795690,1772197845461,-844.0,0.00041096,120]
[406795691,1772197845470,-300.0,0.00041096,10]
[406795692,1772197845479,-150.0,0.00041096,10]
[406795693,1772197845489,-300.0,0.00041096,30]
[406795694,1772197845498,-2000.0,0.000411,2]
[406795695,1772197845508,-2223.12063345,0.0004123,5]
[406795696,1772197845517,-500.0,0.00041236,120]
[406795697,1772197845526,-455.69291,0.00041288,30]
[406795698,1772197845536,-175.22654387,0.0004136,14]
[406795699,1772197845546,-152.0,0.000414,120]
[406795700,1772197845555,-1040.2,0.00041453,30]
[406795701,1772197845564,-856.45675791,0.00041482,2]
[406795702,1772197845574,-306.29679311,0.00041482,2]
[406795703,1772197845583,-852.28136836,0.00041482,2]
[406795704,1772197845592,-1565.26887382,0.00041482,2]
[406795705,1772197845602,-307.55492962,0.00041482,2]
[406795706,1772197845612,-300.0,0.00041482,2]
[406795707,1772197845621,-300.0,0.00041482,2]
[406795708,1772197845631,-459.19979016,0.00041482,2]
[406795709,1772197845640,-300.0,0.00041482,2]
[406795710,1772197845650,-300.0,0.00041482,2]
[406795711,1772197845659,-371.72919772,0.00041482,2]
[406795712,1772197845669,-300.0,0.00041482,2]
[406795713,1772197845679,-300.0,0.00041482,2]
[406795714,1772197845689,-519.04834756,0.00041482,2]
[406795715,1772197845699,-306.51036434,0.00041482,2]
[406795716,1772197845709,-300.0,0.00041482,2]
[406795717,1772197845719,-300.0,0.00041482,2]
[406795718,1772197845728,-405.58612148,0.00041482,2]
[406795719,1772197845738,-300.0,0.00041482,2]
[406795720,1772197845747,-300.0,0.00041482,2]
[406795721,1772197845759,-300.0,0.00041482,2]
[406795722,1772197845769,-1083.06069021,0.00041482,2]
[406795723,1772197845778,-300.0,0.00041482,2]
[406795724,1772197845788,-306.29679311,0.00041482,2]
[406795725,1772197845798,-856.45675791,0.00041482,2]
[406795726,1772197845807,-852.28136836,0.00041482,2]
[406795727,1772197845816,-1565.26887382,0.00041482,2]
[406795728,1772197845826,-307.55492962,0.00041482,2]
[406795729,1772197845840,-300.0,0.00041482,2]
[406795730,1772197845849,-300.0,0.00041482,2]
[406795731,1772197845859,-459.19979016,0.00041482,2]
[406795732,1772197845870,-300.0,0.00041482,2]
[406795733,1772197845880,-368.08561276,0.00041482,2]
[406795734,1772197845888,-371.72919772,0.00041482,2]
[406795735,1772197845898,-300.0,0.00041482,2]
[406795736,1772197845908,-300.0,0.00041482,2]
[406795737,1772197845918,-519.04834756,0.00041482,2]
[406795738,1772197845930,-306.51036434,0.00041482,2]
[406795739,1772197845939,-300.0,0.00041482,2]
[406795740,1772197845948,-300.0,0.00041482,2]
[406795741,1772197845957,-405.58612148,0.00041482,2]
[406795742,1772197845967,-300.0,0.00041482,2]
[406795743,1772197845976,-300.0,0.00041482,2]
[406795744,1772197845985,-1083.06069021,0.00041482,2]
[406795745,1772197845994,-300.0,0.00041482,2]
[406795747,1772197846004,-455.69291,0.00041488,30]
[406795749,1772197846014,-156.0,0.000416,120]
[406795750,1772197846022,-500.0,0.00041643,120]
[406795751,1772197846032,-266.58091307,0.00041643,120]
[406795752,1772197846041,-844.0,0.00041644,120]
[406795753,1772197846051,-250.0,0.00041644,10]
[406795756,1772197846062,-526.46,0.00041644,120]
[406795757,1772197846071,-455.69291,0.00041688,30]
[406795758,1772197846080,-154.86311374,0.00041797,14]
[406795759,1772197846089,-300.0,0.00041799,30]
[406795760,1772197846099,-275214.78070288,0.000418,120]
[406795761,1772197846128,-545.67164813,0.000418,120]
[406795762,1772197846282,-132240.7778555,0.000418,120]
[406795763,1772197846293,-1341.78148273,0.000418,120]
[406795764,1772197846304,-1649.40841121,0.000418,120]
[406795765,1772197846315,-122633.01935155,0.000418,120]
[406795766,1772197846324,-455.69291,0.00041888,30]
[406795767,1772197846336,-300.0,0.00041899,30]
[406795768,1772197846347,-35219.70228661,0.000419,14]
[406795769,1772197846356,-600.0,0.00041918,10]
[406795770,1772197846367,-150.0,0.00041999,20]
[406795771,1772197846376,-777.8061308,0.00042,120]
[406795772,1772197846385,-6907.92,0.00042,14]
[406795773,1772197846394,-150.0,0.00042,20]
[406795774,1772197846403,-1040.2,0.00042131,30]
[406795775,1772197846412,-845.0,0.00042162,16]
[406795776,1772197846422,-500.0,0.0004217,3]
[406795777,1772197846431,-1000.0,0.0004217,3]
[406795778,1772197846440,-150.0,0.00042173,120]
[406795779,1772197846449,-193.0,0.00042174,14]
[406795780,1772197846459,-844.0,0.00042192,120]
[406795781,1772197846469,-350.0,0.00042192,10]
[406795782,1772197846484,-515.46401169,0.00042211,15]
[406795783,1772197846502,-300.0,0.00042219,30]
[406795784,1772197846511,-99310.40695131,0.0004222,7]
[406795785,1772197846522,-964.03069402,0.0004222,7]
[406795786,1772197846533,-15678.14945467,0.0004222,7]
[406795787,1772197846543,-151.0,0.0004222,120]
[406795788,1772197846552,-151.0,0.0004222,120]
[406795789,1772197846561,-699.233514,0.0004222,15]
[406795791,1772197846571,-151.0,0.0004222,120]
[406795793,1772197846580,-172.059775,0.0004222,120]
[406795795,1772197846602,-699.233514,0.0004222,15]
[406795797,1772197846617,-699.233514,0.0004222,15]
[406795798,1772197846627,-699.233514,0.0004222,15]
[406795800,1772197846637,-155.330113,0.0004222,120]
[406795801,1772197846646,-151.0,0.0004222,60]
[406795802,1772197846655,-151.0,0.0004222,120]
[406795803,1772197846664,-151.778143,0.0004222,120]
[406795804,1772197846674,-151.0,0.0004222,120]
[406795805,1772197846683,-151.0,0.0004222,120]
[406795806,1772197846692,-208.791845,0.0004222,120]
[406795807,1772197846702,-151.0,0.0004222,120]
[406795808,1772197846711,-151.0,0.0004222,120]
[406795809,1772197846720,-209.488269,0.0004222,120]
[406795810,1772197846729,-151.0,0.0004222,120]
[406795811,1772197846738,-151.0,0.0004222,120]
[406795812,1772197846747,-151.0,0.0004222,120]
[406795813,1772197846760,-156.81184,0.0004222,120]
[406795814,1772197846769,-151.0,0.0004222,120]
[406795815,1772197846778,-223.696873,0.0004222,120]
[406795816,1772197846787,-275.307574,0.0004222,120]
[406795817,1772197846796,-351.063443,0.0004222,120]
[406795818,1772197846809,-151.0,0.0004222,120]
[406795819,1772197846819,-351.063443,0.0004222,120]
[406795820,1772197846829,-154.825768,0.0004222,120]
[406795821,1772197846839,-351.063443,0.0004222,120]
[406795822,1772197846848,-151.0,0.0004222,120]
[406795823,1772197846857,-154.825768,0.0004222,120]
[406795824,1772197846866,-351.063443,0.0004222,120]
[406795825,1772197846876,-154.825768,0.0004222,120]
[406795826,1772197846884,-154.825768,0.0004222,120]
[406795827,1772197846894,-151.0,0.0004222,120]
[406795828,1772197846903,-168.010225,0.0004222,120]
[406795829,1772197846912,-151.0,0.0004222,120]
[406795830,1772197846921,-201.35611,0.0004222,120]
[406795831,1772197846930,-151.0,0.0004222,120]
[406795832,1772197846939,-157.476975,0.0004222,120]
[406795833,1772197846949,-201.35611,0.0004222,120]
[406795835,1772197846958,-201.35611,0.0004222,120]
[406795837,1772197846967,-151.0,0.0004222,120]
[406795839,1772197846976,-201.35611,0.0004222,120]
[406795842,1772197846985,-151.0,0.0004222,120]
[406795846,1772197846994,-151.0,0.0004222,120]
[406795849,1772197847003,-151.0,0.0004222,120]
[406795851,1772197847012,-253.071786,0.0004222,120]
[406795853,1772197847021,-253.071786,0.0004222,120]
[406795855,1772197847031,-151.0,0.0004222,120]
[406795857,1772197847039,-253.071786,0.0004222,120]
[406795859,1772197847049,-253.071786,0.0004222,120]